bitfinex-derivatives/quotes_SOLF0:USTF0_20250905
["timestamp","ask_amount","ask_price","bid_price","bid_amount"]
[1757063070394,4.3547,206.66,206.62,2.09993179]
[1757063070592,4.3549,206.65,206.63,7.72]
[1757063071691,4.3549,206.65,206.62,2.09993179]
[1757063072095,4.3549,206.65,206.63,7.72]
[1757063072493,4.3549,206.65,206.62,2.09993179]
[1757063072693,4.3549,206.65,206.63,7.72]
[1757063072894,4.3544,206.67,206.63,7.72]
[1757063073197,4.3544,206.67,206.66,7.72]
[1757063077498,4.3544,206.67,206.66,9.03844786]
[1757063078906,4.3544,206.67,206.66,1.31844786]
[1757063079299,4.3544,206.67,206.62,49.83188338]
[1757063079506,4.3544,206.67,206.66,1.31844786]
[1757063084112,4.3546,206.66,206.62,0.03188338]
[1757063084415,4.3546,206.66,206.65,1.31844786]
[1757063087707,4.3546,206.66,206.65,9.03844786]
[1757063093214,7.91,206.7,206.66,7.39]
[1757063093405,7.91,206.7,206.69,1.31844786]
[1757063094514,12.2637,206.7,206.69,1.31844786]
[1757063095115,4.3541,206.68,206.67,0.03473602]
[1757063095310,4.3541,206.68,206.67,1.35318388]
[1757063099221,11.7641,206.68,206.67,1.35318388]
[1757063100222,11.7641,206.68,206.67,0.03473602]
[1757063100421,11.7641,206.68,206.67,1.35318388]
[1757063103623,67.7099,206.75,206.67,0.03473602]
[1757063103823,7.41,206.71,206.67,0.03473602]
[1757063104020,67.7185,206.72,206.67,0.03473602]
[1757063104220,7.41,206.68,206.67,0.03473602]
[1757063104831,4.354,206.69,206.67,7.42473602]
[1757063105127,7.41,206.78,206.69,7.39]
[1757063105318,67.6962,206.79,206.74,1.31844786]
[1757063105524,7.41,206.78,206.74,1.31844786]
[1757063105827,7.41,206.8,206.76,1.31844786]
[1757063106833,4.3522,206.78,206.76,1.31844786]
[1757063107130,11.7622,206.78,206.77,1.31844786]
[1757063108324,7.41,206.8,206.77,1.31844786]
[1757063108531,5.35333583,206.82,206.78,1.31844786]
[1757063108730,7.41,206.81,206.78,1.31844786]
[1757063109230,7.41,206.82,206.78,1.31844786]
[1757063109526,65.12591634,206.83,206.78,1.31844786]
[1757063109732,7.41,206.82,206.78,1.31844786]
[1757063109931,11.7618,206.8,206.78,1.35390586]
[1757063110825,7.41,206.79,206.78,1.35390586]
[1757063115636,4.3518,206.8,206.78,8.74390586]
[1757063115839,11.7612,206.82,206.79,7.39]
[1757063116039,11.7612,206.82,206.81,1.31844786]
[1757063116431,4.3512,206.82,206.81,1.31844786]
[1757063116834,4.3515,206.81,206.79,7.39]
[1757063117038,4.3515,206.81,206.8,1.31844786]
[1757063117433,4.3515,206.81,206.8,8.70844786]
[1757063117639,4.3509,206.84,206.8,1.31844786]
[1757063117841,4.3509,206.84,206.83,1.31844786]
[1757063118435,4.3509,206.84,206.83,8.95844786]
[1757063118739,4.3509,206.84,206.83,1.31844786]
[1757063119137,7.74,206.9,206.83,7.64]
[1757063119330,67.6735,206.86,206.79,30.36]
[1757063119530,7.74,206.84,206.81,1.31844786]
[1757063119737,7.74,206.81,206.8,0.03499738]
[1757063131646,7.74,206.83,206.8,1.35344524]
[1757063131843,67.6682,206.88,206.8,1.35344524]
[1757063132042,75.4082,206.88,206.8,1.35344524]
[1757063132846,4.3511,206.83,206.8,1.35344524]
[1757063133147,7.74,206.87,206.8,1.35344524]
[1757063133845,4.3513,206.82,206.8,1.35344524]
[1757063134047,12.0913,206.82,206.8,1.35344524]
[1757063134442,4.3513,206.82,206.8,1.35344524]
[1757063134642,7.74,206.81,206.8,1.35344524]
[1757063136649,4.3508,206.84,206.8,1.35344524]
[1757063136844,7.74,206.83,206.8,1.35344524]
[1757063137038,7.74,206.83,206.8,8.99344524]
[1757063137346,4.3504,206.86,206.82,1.31844786]
[1757063137547,7.74,206.85,206.84,1.31844786]
[1757063137843,12.0904,206.86,206.84,1.31844786]
[1757063138048,12.09,206.88,206.84,8.95844786]
[1757063138249,7.74,206.92,206.87,1.31844786]
[1757063138648,7.74,206.94,206.87,1.31844786]
[1757063138849,7.74,206.94,206.87,1.34930422]
[1757063139444,7.74,206.95,206.87,0.03085636]
[1757063140545,7.74,206.95,206.87,7.67085636]
[1757063140850,7.74,206.95,206.87,0.03085636]
[1757063141456,7.74,206.95,206.87,7.67085636]
[1757063142752,4.3488,206.94,206.87,127.73085636]
[1757063142954,7.74,206.95,206.89,2.05581491]
[1757063143147,5.35333583,206.96,206.92,2.05581491]
[1757063143348,13.09333583,206.96,206.93,7.64]
[1757063145151,5.35333583,206.96,206.92,2.09146798]
[1757063145550,5.35333583,206.96,206.93,7.64]
[1757063146753,5.35333583,206.96,206.92,70.43146798]
[1757063146955,5.35333583,206.96,206.93,7.64]
[1757063147355,4.3479,206.98,206.92,78.07146798]
[1757063147954,7.74,206.99,206.92,78.07146798]
[1757063148149,7.74,206.99,206.95,10.02581491]
[1757063148756,12.4574,207.0,206.95,2.05581491]
[1757063149054,12.4574,207.0,206.96,7.97]
[1757063150660,4.3474,207.0,206.96,7.97]
[1757063150862,8.11,207.01,206.92,0.03565307]
[1757063151160,8.11,207.0,206.92,23.56]
[1757063151351,8.11,206.93,206.91,57.58]
[1757063151756,8.11,206.93,206.9,0.03143942]
[1757063151957,8.11,206.93,206.9,8.00143942]
[1757063152155,4.3487,206.94,206.91,7.97]
[1757063153063,12.4587,206.94,206.91,12.01650065]
[1757063153259,12.4587,206.94,206.91,4.04650065]
[1757063153562,4.3487,206.94,206.91,4.04650065]
[1757063153861,12.4587,206.94,206.91,4.04650065]
[1757063154259,8.11,206.93,206.91,4.04650065]
[1757063156463,8.11,206.93,206.9,0.03143942]
[1757063156665,8.11,206.93,206.9,8.00143942]
[1757063156865,8.11,207.01,206.91,10.02581491]
[1757063157964,4.3482,206.97,206.91,10.02581491]
[1757063158464,4.3482,206.97,206.92,0.03237227]
[1757063158662,8.11,206.96,206.92,8.00237227]
[1757063159055,8.11,206.95,206.92,119.87237227]
[1757063159262,8.11,206.99,206.92,0.03237227]
[1757063159665,8.11,206.94,206.92,0.03237227]
[1757063160163,4.3481,206.97,206.92,0.03237227]
[1757063160366,8.11,206.96,206.92,0.03237227]
[1757063160562,4.3481,206.97,206.93,7.97]
[1757063160763,12.4581,206.97,206.93,7.97]
[1757063161368,8.11,206.99,206.92,0.03237227]
[1757063161766,8.11,206.97,206.92,0.03237227]
[1757063161966,8.11,206.93,206.92,0.03237227]
[1757063164669,8.11,206.93,206.87,4.04650065]
[1757063164670,8.59,206.93,206.87,4.04650065]
[1757063164870,8.11,206.93,206.87,4.04650065]
[1757063169371,8.11,206.93,206.79,363.86581491]
[1757063169567,0.03196329,206.95,206.79,363.86581491]
[1757063169767,69.69671491,206.96,206.79,363.86581491]
[1757063169971,8.11,206.88,206.79,321.48581491]
[1757063170270,0.03383938,206.89,206.79,321.48581491]
[1757063170476,8.11,206.88,206.8,7.97]
[1757063171072,8.11,206.88,206.82,2.05581491]
[1757063173877,4.3505,206.86,206.82,2.05581491]
[1757063174176,4.3505,206.86,206.83,7.97]
[1757063174372,4.35,206.88,206.83,7.97]
[1757063174574,0.03383938,206.89,206.83,7.97]
[1757063174770,0.03383938,206.89,206.85,2.05581491]
[1757063174966,0.03383938,206.89,206.86,7.97]
[1757063175175,0.03383938,206.89,206.85,121.79581491]
[1757063175375,0.03383938,206.89,206.86,7.97]
[1757063175879,12.49363938,206.89,206.86,7.97]
[1757063176178,8.14383938,206.89,206.81,7.97]
[1757063176378,8.14383938,206.89,206.83,119.74]
[1757063176682,8.11,206.87,206.79,431.22]
[1757063177184,8.11,206.87,206.79,439.19]
[1757063177883,4.3506,206.85,206.79,439.19]
[1757063178078,8.11,206.87,206.79,439.19]
[1757063178475,0.03470187,206.85,206.79,439.19]
[1757063179885,4.3511,206.83,206.79,431.22]
[1757063180085,7.82,206.84,206.8,7.59]
[1757063180787,12.1709,206.84,206.8,7.59]
[1757063181086,4.3509,206.84,206.79,431.28]
[1757063181280,4.3509,206.84,206.8,7.59]
[1757063181484,4.3509,206.84,206.79,431.28]
[1757063181684,4.3509,206.84,206.8,7.59]
[1757063181888,4.3509,206.84,206.79,431.28]
[1757063182082,4.3511,206.83,206.79,431.28]
[1757063182486,4.3511,206.83,206.8,7.59]
[1757063183079,4.3511,206.83,206.79,431.28]
[1757063183481,4.3511,206.83,206.8,7.59]
[1757063183688,4.3511,206.83,206.79,431.28]
[1757063183887,4.3511,206.83,206.8,7.59]
[1757063184087,4.3511,206.83,206.79,433.33581491]
[1757063184289,4.3511,206.83,206.8,7.59]
[1757063184585,4.3511,206.83,206.79,433.33581491]
[1757063184786,4.3511,206.83,206.8,7.59]
[1757063184985,4.3511,206.83,206.79,433.33581491]
[1757063185286,4.3511,206.83,206.8,7.59]
[1757063185490,4.3513,206.82,206.8,7.59]
[1757063185891,4.3513,206.82,206.79,431.28]
[1757063186292,4.3513,206.82,206.8,7.59]
[1757063186493,4.3513,206.82,206.79,431.28]
[1757063187495,4.3513,206.82,206.8,7.59]
[1757063187995,4.3513,206.82,206.79,431.28]
[1757063188791,4.3513,206.82,206.8,7.59]
[1757063189189,0.03470187,206.85,206.81,2.05581491]
[1757063189384,0.03470187,206.85,206.82,119.6]
[1757063189593,0.03470187,206.85,206.83,7.59]
[1757063189795,0.03470187,206.85,206.79,315.8117]
[1757063190094,7.82,206.84,206.8,119.64]
[1757063190284,0.03470187,206.85,206.8,119.64]
[1757063190489,75.4994,206.84,206.76,4.04650065]
[1757063190689,75.4994,206.84,206.77,119.72]
[1757063192294,4.3518,206.8,206.77,119.72]
[1757063192699,4.3518,206.8,206.78,7.59]
[1757063194700,4.3521,206.78,206.74,9.64581491]
[1757063194899,0.03308715,206.81,206.75,119.62]
[1757063195098,7.82,206.79,206.73,11.63650065]
[1757063195496,67.6922,206.8,206.74,28.34]
[1757063195695,4.3528,206.75,206.74,28.34]
[1757063196704,7.82,206.74,206.73,6.5e-07]
[1757063199108,7.82,206.74,206.66,47.39]
[1757063199496,7.82,206.74,206.67,1.31861074]
[1757063199701,7.82,206.79,206.73,8.90861074]
[1757063199901,7.82,206.79,206.75,8.90861074]
[1757063200304,0.03664209,206.78,206.75,8.90861074]
[1757063200910,4.3523,206.77,206.75,8.90861074]
[1757063201210,12.1723,206.77,206.75,1.31861074]
[1757063204305,4.3529,206.74,206.71,7.59]
[1757063204502,67.73554209,206.78,206.71,8.90861074]
[1757063204704,7.82,206.75,206.71,1.31861074]
[1757063205007,0.03664209,206.78,206.73,1.31861074]
[1757063205209,7.85664209,206.78,206.75,1.31861074]
[1757063205710,7.85664209,206.78,206.75,8.90861074]
[1757063206914,4.3523,206.77,206.75,8.90861074]
[1757063207916,4.3523,206.77,206.75,1.31861074]
[1757063208214,4.3526,206.76,206.73,8.94861074]
[1757063208414,0.03664209,206.78,206.73,8.94861074]
[1757063208615,7.4,206.77,206.73,8.94861074]
[1757063210016,4.3528,206.75,206.73,8.94861074]
[1757063210206,4.3528,206.75,206.73,7.63]
[1757063210610,4.353,206.74,206.72,1.31861074]
[1757063210814,4.353,206.74,206.72,8.94861074]
[1757063211312,4.3524,206.77,206.73,7.63]
[1757063211613,4.3524,206.77,206.74,1.31861074]
[1757063212009,4.3524,206.77,206.75,7.63]
[1757063212214,4.3524,206.77,206.76,8.94861074]
[1757063213012,0.03664209,206.78,206.76,8.94861074]
[1757063213413,0.03664209,206.78,206.76,1.31861074]
[1757063214914,4.38884209,206.78,206.76,1.31861074]
[1757063215114,4.38884209,206.78,206.76,8.94861074]
[1757063216211,4.38884209,206.78,206.76,7.63]
[1757063216419,4.38884209,206.78,206.76,8.94861074]
[1757063217616,4.38884209,206.78,206.76,1.31861074]
[1757063217809,4.38884209,206.78,206.77,7.63]
[1757063218819,0.03664209,206.78,206.77,7.63]
[1757063219716,4.3512,206.82,206.76,1.31861074]
[1757063219923,4.3512,206.82,206.81,8.94861074]
[1757063220517,4.3509,206.84,206.81,8.94861074]
[1757063220717,4.3509,206.84,206.81,1.31861074]
[1757063220912,4.3509,206.84,206.82,7.63]
[1757063221320,4.3509,206.84,206.81,1.31861074]
[1757063221509,4.3509,206.84,206.82,7.63]
[1757063222517,7.4,206.91,206.84,7.63]
[1757063222721,7.4,206.91,206.83,1.31861074]
[1757063222722,12.75333583,206.92,206.86,8.94861074]
[1757063222921,4.3499,206.88,206.86,8.94861074]
[1757063223121,4.3499,206.88,206.87,0.03519515]
[1757063224022,11.7499,206.88,206.87,0.03519515]
[1757063225320,4.3496,206.9,206.87,0.03519515]
[1757063225513,11.7496,206.9,206.87,7.66519515]
[1757063225717,7.4,206.9,206.87,7.66519515]
[1757063225920,7.4,206.9,206.87,0.03519515]
[1757063226622,11.7499,206.89,206.87,0.03519515]
[1757063226822,7.4,206.88,206.87,0.03519515]
[1757063232424,4.3499,206.89,206.87,0.03519515]
[1757063233525,11.7499,206.89,206.87,0.03519515]
[1757063235529,7.4,206.88,206.87,0.03519515]
[1757063239931,4.3499,206.89,206.87,0.03519515]
[1757063240525,7.4,206.88,206.87,0.03519515]
[1757063247631,4.3499,206.89,206.87,0.03519515]
[1757063247831,7.4,206.9,206.87,8.96380589]
[1757063248039,4.3493,206.91,206.88,7.61]
[1757063248238,4.3493,206.91,206.87,8.96380589]
[1757063248437,11.7496,206.9,206.87,1.35380589]
[1757063248637,11.7496,206.9,206.87,8.96380589]
[1757063248835,4.3498,206.89,206.87,0.03519515]
[1757063249141,7.4,206.88,206.87,0.03519515]
[1757063264144,75.0667,206.88,206.8,7.61]
[1757063265349,7.4,206.88,206.8,7.61]
[1757063266752,75.0661,206.88,206.79,4.06100459]
[1757063267250,0.03693144,206.86,206.79,4.06100459]
[1757063267450,4.3511,206.83,206.79,4.06100459]
[1757063267651,4.3511,206.83,206.8,7.61]
[1757063267847,4.3511,206.83,206.79,4.06100459]
[1757063268048,4.3511,206.83,206.8,7.74]
[1757063268448,4.3511,206.83,206.79,4.06100459]
[1757063268647,4.3511,206.83,206.8,7.74]
[1757063268849,4.3511,206.83,206.79,4.06100459]
[1757063269051,4.3511,206.83,206.8,7.74]
[1757063269252,4.3513,206.82,206.8,7.74]
[1757063269850,4.3513,206.82,206.79,4.06100459]
[1757063270150,12.2308,206.84,206.8,7.74]
[1757063270353,7.88,206.84,206.79,4.06100459]
[1757063270554,7.88,206.84,206.8,7.74]
[1757063271054,4.3513,206.82,206.8,7.74]
[1757063271556,4.3513,206.82,206.79,4.06100459]
[1757063271854,4.3513,206.82,206.8,7.74]
[1757063272050,4.3513,206.82,206.79,4.06100459]
[1757063272251,4.3513,206.82,206.8,7.74]
[1757063272451,4.3513,206.82,206.79,4.06100459]
[1757063272756,4.3513,206.82,206.8,7.74]
[1757063274753,4.3515,206.81,206.79,11.80100459]
[1757063274957,4.3515,206.81,206.8,11.80100459]
[1757063276253,4.3515,206.81,206.8,4.06100459]
[1757063276458,4.3515,206.81,206.8,11.80100459]
[1757063277259,4.38445909,206.83,206.81,7.74]
[1757063278159,4.3513,206.82,206.8,4.06100459]
[1757063278460,4.3513,206.82,206.8,11.80100459]
[1757063280560,4.3513,206.82,206.8,4.06100459]
[1757063280767,12.2313,206.82,206.8,4.06100459]
[1757063281265,7.88,206.81,206.8,4.06100459]
[1757063282054,7.88,206.81,206.79,4.59e-06]
[1757063282055,4.3516,206.8,206.79,4.59e-06]
[1757063282259,75.5733,206.8,206.76,3.715e-05]
[1757063282668,75.6088895,206.8,206.76,3.715e-05]
[1757063283166,12.2322,206.77,206.76,3.715e-05]
[1757063284364,4.3526,206.75,206.74,0.77229405]
[1757063284667,12.2326,206.75,206.74,9.405e-05]
[1757063286165,4.3539,206.7,206.68,10.80774595]
[1757063286364,7.88,206.69,206.68,10.80774595]
[1757063287265,4.3539,206.7,206.68,10.80774595]
[1757063287569,12.2339,206.7,206.68,10.80774595]
[1757063287772,7.88,206.69,206.68,10.80774595]
[1757063287971,7.88,206.69,206.62,7.74]
[1757063288571,12.2341,206.69,206.62,7.74]
[1757063288968,75.6092,206.69,206.62,7.74]
[1757063289466,4.3547,206.66,206.62,7.74]
[1757063289668,12.2347,206.66,206.62,7.74]
[1757063290171,7.88,206.65,206.62,7.74]
[1757063290571,0.03542204,206.66,206.59,2.05742918]
[1757063290775,0.03542204,206.66,206.6,7.74]
[1757063291875,0.03542204,206.66,206.63,7.74]
[1757063292572,0.03542204,206.66,206.63,12.0951]
[1757063293273,0.03542204,206.66,206.65,9.79742918]
[1757063294475,0.03542204,206.66,206.65,10.27742918]
[1757063297176,4.3531,206.73,206.66,7.74]
[1757063297773,4.3534,206.72,206.66,7.74]
[1757063298075,7.72,206.73,206.66,7.74]
[1757063298277,7.72,206.73,206.67,0.03112184]
[1757063298874,12.0736,206.71,206.67,7.48112184]
[1757063299473,7.72,206.7,206.67,7.48112184]
[1757063299980,12.0738,206.7,206.67,0.03112184]
[1757063300474,12.0733,206.72,206.67,0.03112184]
[1757063300675,12.0733,206.72,206.68,7.45]
[1757063300872,12.0733,206.72,206.67,0.03112184]
[1757063301070,4.3533,206.72,206.67,0.03112184]
[1757063301671,4.3533,206.72,206.68,7.45]
[1757063301980,4.3533,206.72,206.67,0.03112184]
[1757063302173,4.3533,206.72,206.68,7.45]
[1757063302367,4.3533,206.72,206.67,0.03112184]
[1757063302576,4.3533,206.72,206.68,7.45]
[1757063302774,4.3533,206.72,206.67,0.03112184]
[1757063302976,4.3533,206.72,206.68,7.45]
[1757063303176,4.3533,206.72,206.67,0.03112184]
[1757063303377,4.3533,206.72,206.68,7.45]
[1757063303573,4.3533,206.72,206.67,0.03112184]
[1757063303773,4.3533,206.72,206.68,7.45]
[1757063304074,4.3533,206.72,206.67,0.03112184]
[1757063304276,4.3533,206.72,206.68,7.45]
[1757063304577,4.3533,206.72,206.67,0.03112184]
[1757063305976,4.3533,206.72,206.68,7.45]
[1757063306879,4.3533,206.72,206.67,0.03112184]
[1757063307273,4.3533,206.72,206.68,7.45]
[1757063307682,12.0733,206.72,206.68,7.45]
[1757063308182,4.353,206.74,206.68,9.50742918]
[1757063309383,4.3532,206.73,206.68,2.05742918]
[1757063309685,4.3532,206.73,206.69,7.45]
[1757063309880,4.3532,206.73,206.68,2.05742918]
[1757063310080,4.3532,206.73,206.69,7.45]
[1757063310286,4.3532,206.73,206.68,2.05742918]
[1757063310786,4.3532,206.73,206.69,7.45]
[1757063310980,4.3532,206.73,206.68,6.41142918]
[1757063311688,4.3532,206.73,206.69,7.45]
[1757063311988,4.3532,206.73,206.68,6.41142918]
[1757063312187,4.3532,206.73,206.69,7.45]
[1757063312381,4.3532,206.73,206.68,6.41142918]
[1757063312585,12.0732,206.73,206.68,6.41142918]
[1757063313387,12.0732,206.73,206.69,7.45]
[1757063314488,12.0732,206.73,206.68,6.41142918]
[1757063314686,12.0732,206.73,206.69,7.45]
[1757063314989,12.0732,206.73,206.68,6.41142918]
[1757063315179,12.0732,206.73,206.69,9.50742918]
[1757063315887,12.0732,206.73,206.69,2.05742918]
[1757063316189,12.0732,206.73,206.7,7.45]
[1757063316790,7.72,206.73,206.7,7.45]
[1757063316990,4.3527,206.75,206.69,6.41122918]
[1757063317192,4.3527,206.75,206.69,13.86122918]
[1757063317593,4.353,206.74,206.69,6.41122918]
[1757063317790,12.073,206.74,206.7,7.45]
[1757063317990,7.72,206.73,206.7,7.45]
[1757063318189,7.72,206.73,206.7,7.48342475]
[1757063318987,4.3532,206.73,206.7,7.48342475]
[1757063319192,7.72,206.72,206.7,0.03342475]
[1757063320097,7.72,206.77,206.7,0.03342475]
[1757063321398,7.72,206.79,206.7,0.03342475]
[1757063321894,67.6936,206.8,206.7,0.03342475]
[1757063321895,4.353,206.74,206.7,0.03342475]
[1757063322095,7.72,206.73,206.7,0.03342475]
[1757063323496,7.72,206.73,206.72,1.31796554]
[1757063328105,4.3533,206.72,206.7,1.35139029]
[1757063328300,7.85,206.71,206.7,1.35139029]
[1757063328501,7.85,206.71,206.7,0.03342475]
[1757063330602,7.85,206.71,206.64,5.40322952]
[1757063331906,7.85,206.67,206.64,13.13322952]
[1757063332106,7.85,206.71,206.64,5.40322952]
[1757063332307,7.85,206.71,206.63,1.31796554]
[1757063332610,7.85,206.69,206.63,1.31796554]
[1757063332912,7.85,206.66,206.63,9.04796554]
[1757063333603,12.2047,206.66,206.63,9.04796554]
[1757063333801,4.3547,206.66,206.63,9.04796554]
[1757063334311,12.2047,206.66,206.63,9.04796554]
[1757063334715,7.85,206.64,206.61,5.40322952]
[1757063335015,7.85,206.64,206.62,1.31796554]
[1757063335210,4.3548,206.65,206.63,7.73]
[1757063335411,4.38890474,206.65,206.64,1.31796554]
[1757063336613,12.23890474,206.65,206.64,1.31796554]
[1757063337314,4.3552,206.64,206.62,9.04796554]
[1757063337915,12.2052,206.64,206.62,9.04796554]
[1757063338210,0.03410474,206.65,206.57,9.75962952]
[1757063338414,7.85,206.64,206.6,1.31796554]
[1757063338614,0.03410474,206.65,206.6,1.31796554]
[1757063338911,12.2055,206.62,206.6,1.31796554]
[1757063339111,7.85,206.61,206.6,1.31796554]
[1757063339614,4.3555,206.62,206.6,1.31796554]
[1757063339914,12.2055,206.62,206.6,1.31796554]
[1757063341120,7.85,206.61,206.6,1.31796554]
[1757063342018,7.85,206.6,206.58,1.31796554]
[1757063342515,4.3563,206.58,206.57,2.952e-05]
[1757063342818,7.85,206.58,206.55,2.952e-05]
[1757063343315,1.35443504,206.6,206.55,2.952e-05]
[1757063343316,0.0364695,206.6,206.56,1.31796554]
[1757063343613,0.0364695,206.6,206.59,1.31796554]
[1757063343813,0.0364695,206.6,206.59,9.04796554]
[1757063345817,0.0364695,206.6,206.59,122.41796554]
[1757063347016,67.7235,206.71,206.59,130.14796554]
[1757063347211,7.85,206.7,206.62,1.31796554]
[1757063347411,7.85,206.7,206.64,1.31796554]
[1757063347617,167.50604972,206.76,206.66,1.31796554]
[1757063347817,7.85,206.73,206.64,1.31796554]
[1757063348511,4.3541,206.69,206.66,0.0344734]
[1757063348916,7.85,206.68,206.66,0.0344734]
[1757063349810,4.3541,206.69,206.66,0.0344734]
[1757063350010,7.85,206.68,206.66,0.0344734]
[1757063350210,4.3541,206.69,206.66,0.0344734]
[1757063350411,7.85,206.68,206.66,0.0344734]
[1757063350608,4.3541,206.69,206.66,0.0344734]
[1757063351117,7.85,206.67,206.66,0.0344734]
[1757063357315,8.33,206.67,206.66,0.0344734]
[1757063358520,8.33,206.67,206.57,7.73]
[1757063358719,8.33,206.67,206.59,1.31796554]
[1757063358720,7.85,206.67,206.59,1.31796554]
[1757063358920,7.85,206.67,206.61,1.31796554]
[1757063359222,7.52,206.64,206.61,9.38796554]
[1757063361618,7.52,206.64,206.61,8.07]
[1757063361825,11.8751,206.64,206.61,9.38796554]
[1757063362122,4.3551,206.64,206.61,1.31796554]
[1757063362323,4.3553,206.63,206.61,1.31796554]
[1757063362524,7.52,206.62,206.61,1.31796554]
[1757063363125,7.52,206.62,206.59,1.31796554]
[1757063363926,7.52,206.62,206.59,9.38796554]
[1757063364421,4.3553,206.63,206.61,1.31796554]
[1757063366428,11.8753,206.63,206.61,1.31796554]
[1757063367023,4.3553,206.63,206.61,1.31796554]
[1757063367232,7.52,206.62,206.61,1.31796554]
[1757063367924,11.8753,206.63,206.61,1.31796554]
[1757063368129,4.3558,206.61,206.59,8.07]
[1757063368431,7.52,206.6,206.58,1.31796554]
[1757063369228,7.52,206.6,206.58,9.38796554]
[1757063370428,4.38843408,206.61,206.58,9.38796554]
[1757063370731,11.90843408,206.61,206.58,9.38796554]
[1757063371633,7.52,206.6,206.58,1.31796554]
[1757063372234,7.52,206.59,206.58,1.31796554]
[1757063372429,7.52,206.59,206.55,120.56]
[1757063372735,4.3559,206.6,206.58,1.31796554]
[1757063373134,4.3559,206.6,206.58,9.38796554]
[1757063373631,0.03263408,206.61,206.58,9.38796554]
[1757063373934,0.03263408,206.61,206.6,1.31796554]
[1757063374436,0.03263408,206.61,206.6,9.38796554]
[1757063377036,0.03263408,206.61,206.6,1.31796554]
[1757063377235,7.55263408,206.61,206.6,1.31796554]
[1757063377634,0.03263408,206.61,206.6,1.31796554]
[1757063378541,0.03263408,206.61,206.6,9.38796554]
[1757063380138,0.03263408,206.61,206.6,1.31796554]
[1757063380342,0.03263408,206.61,206.6,9.38796554]
[1757063384445,7.55263408,206.61,206.58,12.12832602]
[1757063384646,0.03263408,206.61,206.6,8.07]
[1757063385244,0.03263408,206.61,206.6,9.38796554]
[1757063385444,0.03263408,206.61,206.6,8.07]
[1757063386845,0.03263408,206.61,206.6,10.13154121]
[1757063387043,7.52,206.68,206.6,2.06154121]
[1757063387245,7.52,206.68,206.61,8.07]
[1757063387847,4.3546,206.66,206.6,2.06154121]
[1757063388347,4.3546,206.66,206.62,7.82]
[1757063388541,4.3546,206.66,206.61,0.03268473]
[1757063388741,4.3546,206.66,206.62,7.82]
[1757063389143,4.3548,206.65,206.61,0.03268473]
[1757063389345,4.3548,206.65,206.62,7.82]
[1757063389743,4.3551,206.64,206.61,0.03268473]
[1757063389947,7.51,206.68,206.61,0.03268473]
[1757063390846,4.3553,206.63,206.61,0.03268473]
[1757063391744,4.3553,206.63,206.61,7.85268473]
[1757063394148,11.8649,206.65,206.61,0.03268473]
[1757063394445,11.8649,206.65,206.62,7.82]
[1757063394747,7.51,206.65,206.62,7.82]
[1757063394949,7.51,206.68,206.61,0.03268473]
[1757063395348,7.51,206.7,206.63,2.06154121]
[1757063395544,7.51,206.7,206.64,7.82]
[1757063395739,5.35333583,206.71,206.64,7.82]
[1757063396147,5.35333583,206.71,206.66,2.06154121]
[1757063396550,12.86333583,206.71,206.67,7.82]
[1757063396750,7.51,206.7,206.67,7.82]
[1757063398850,5.35333583,206.73,206.68,8.3]
[1757063399049,5.35333583,206.73,206.72,7.82]
[1757063399246,5.35333583,206.73,206.72,9.88154121]
[1757063399442,5.35333583,206.73,206.64,67.744]
[1757063399648,5.35333583,206.73,206.71,7.82]
[1757063400050,12.86333583,206.73,206.65,4.3547]
[1757063400345,5.35333583,206.73,206.7,0.03160087]
[1757063400547,7.51,206.72,206.7,0.03160087]
[1757063400750,7.51,206.72,206.62,7.82]